fUST/lending_fUST_20240726
["ID","MTS","AMOUNT","RATE_DAILY","PERIOD"]
[333180905,1721923843455,-212.773538,0.00013715,2]
[333180906,1721923843468,-178.255816,0.00013715,2]
[333180907,1721923843478,-272.153197,0.00013715,2]
[333180908,1721923843490,-224.974369,0.00013715,2]
[333180909,1721923843502,-150.0,0.00013802,2]
[333180910,1721923843513,-150.0,0.00013802,2]
[333180911,1721923843523,-505.0,0.00013802,2]
[333180912,1721923843533,-167.069487,0.00013826,2]
[333180913,1721923843542,-212.773538,0.00013882,2]
[333180914,1721923843553,-178.255816,0.00013882,2]
[333180915,1721923843564,-272.153197,0.00013882,2]
[333180916,1721923843573,-224.974369,0.00013882,2]
[333180917,1721923843583,-620.09321245,0.00013884,2]
[333180918,1721923843594,-24732.6164867,0.00013962,2]
[333180920,1721923843605,-151.0,0.00013962,2]
[333180922,1721923843619,-49465.2329734,0.00013962,2]
[333180924,1721923843629,-12854.40544478,0.00013972,5]
[333180925,1721923843640,-208.745872,0.00013972,2]
[333180927,1721923843649,-208.745872,0.00013972,2]
[333180929,1721923843660,-500.0,0.00013972,2]
[333180931,1721923843671,-500.0,0.00013972,2]
[333180932,1721923843682,-500.0,0.00013972,2]
[333180933,1721923843693,-500.0,0.00013972,2]
[333180934,1721923843702,-500.0,0.00013972,2]
[333180935,1721923843712,-500.0,0.00013972,2]
[333180936,1721923843724,-500.0,0.00013972,2]
[333180937,1721923843736,-587.57,0.00013972,2]
[333180938,1721923843750,-159.2254058,0.00013972,2]
[333180939,1721923843762,-500.0,0.00013972,2]
[333180940,1721923843773,-500.0,0.00013972,2]
[333180941,1721923843783,-500.0,0.00013972,2]
[333180942,1721923843795,-500.0,0.00013972,2]
[333180943,1721923843806,-333.58264193,0.00013972,2]
[333180944,1721923843817,-500.0,0.00013972,2]
[333180945,1721923843828,-500.0,0.00013972,2]
[333180946,1721923843840,-500.0,0.00013972,2]
[333180947,1721923843850,-500.0,0.00013972,2]
[333180948,1721923843861,-500.0,0.00013972,2]
[333180949,1721923843872,-500.0,0.00013972,2]
[333180950,1721923843881,-515.91565031,0.00013972,2]
[333180951,1721923843891,-500.0,0.00013972,2]
[333180952,1721923843900,-500.0,0.00013972,2]
[333180953,1721923843909,-440.48102587,0.00013972,2]
[333180954,1721923843920,-196.77357668,0.00013972,2]
[333180955,1721923843929,-503.15642272,0.00013972,2]
[333180956,1721923843939,-245.77726075,0.00013972,2]
[333180957,1721923843949,-500.0,0.00013972,2]
[333180958,1721923843959,-500.0,0.00013972,2]
[333180959,1721923843973,-500.0,0.00013972,2]
[333180960,1721923843982,-500.0,0.00013972,2]
[333180961,1721923843992,-500.0,0.00013972,2]
[333180962,1721923844001,-500.0,0.00013972,2]
[333180963,1721923844010,-513.70089173,0.00013972,2]
[333180964,1721923844019,-500.0,0.00013972,2]
[333180965,1721923844028,-500.0,0.00013972,2]
[333180966,1721923844038,-500.0,0.00013972,2]
[333180967,1721923844048,-500.0,0.00013972,2]
[333180968,1721923844057,-500.0,0.00013972,2]
[333180969,1721923844067,-500.0,0.00013972,2]
[333180970,1721923844076,-500.0,0.00013972,2]
[333180971,1721923844085,-500.0,0.00013972,2]
[333180972,1721923844094,-500.0,0.00013972,2]
[333180973,1721923844104,-500.0,0.00013972,2]
[333180974,1721923844114,-500.0,0.00013972,2]
[333180975,1721923844123,-500.0,0.00013972,2]
[333180976,1721923844133,-500.0,0.00013972,2]
[333180977,1721923844143,-500.0,0.00013972,2]
[333180978,1721923844153,-500.0,0.00013972,2]
[333180979,1721923844163,-500.0,0.00013972,2]
[333180980,1721923844173,-500.0,0.00013972,2]
[333180981,1721923844183,-500.0,0.00013972,2]
[333180982,1721923844192,-656.91,0.00013972,2]
[333180983,1721923844202,-500.0,0.00013972,2]
[333180984,1721923844211,-500.0,0.00013972,2]
[333180985,1721923844227,-500.0,0.00013972,2]
[333180986,1721923844236,-500.0,0.00013972,2]
[333180987,1721923844246,-500.0,0.00013972,2]
[333180988,1721923844256,-500.0,0.00013972,2]
[333180989,1721923844265,-1473.79,0.00013972,2]
[333180990,1721923844274,-500.0,0.00013972,2]
[333180991,1721923844284,-500.0,0.00013972,2]
[333180992,1721923844293,-500.0,0.00013972,2]
[333180993,1721923844303,-500.0,0.00013972,2]
[333180994,1721923844313,-500.0,0.00013972,2]
[333180995,1721923844322,-317.57143978,0.00013972,2]
[333180996,1721923844333,-500.0,0.00013972,2]
[333180997,1721923844343,-500.0,0.00013972,2]
[333180998,1721923844353,-336.50403891,0.00013972,2]
[333180999,1721923844362,-151.0,0.00013972,2]
[333181000,1721923844372,-500.0,0.00013972,2]
[333181001,1721923844382,-500.0,0.00013972,2]
[333181002,1721923844391,-500.0,0.00013972,2]
[333181003,1721923844400,-501.77585729,0.00013972,2]
[333181004,1721923844411,-500.0,0.00013972,2]
[333181005,1721923844420,-1043.85,0.00013972,2]
[333181006,1721923844429,-500.0,0.00013972,2]
[333181007,1721923844438,-502.2196872,0.00013972,2]
[333181008,1721923844448,-500.0,0.00013972,2]
[333181009,1721923844459,-500.0,0.00013972,2]
[333181010,1721923844472,-500.0,0.00013972,2]
[333181011,1721923844481,-233.69325146,0.00013972,2]
[333181012,1721923844491,-500.0,0.00013972,2]
[333181013,1721923844500,-2227.8,0.00013972,2]
[333181014,1721923844510,-151.0,0.00013972,2]
[333181015,1721923844519,-151.0,0.00013972,2]
[333181016,1721923844529,-529.67477119,0.00013972,2]
[333181017,1721923844538,-500.0,0.00013972,2]
[333181018,1721923844547,-500.0,0.00013972,2]
[333181019,1721923844557,-699.57,0.00013972,2]
[333181020,1721923844567,-1489.52,0.00013972,2]
[333181021,1721923844576,-500.0,0.00013972,2]
[333181022,1721923844586,-500.0,0.00013972,2]
[333181023,1721923844595,-500.0,0.00013972,2]
[333181024,1721923844605,-500.0,0.00013972,2]
[333181025,1721923844614,-500.0,0.00013972,2]
[333181026,1721923844624,-500.0,0.00013972,2]
[333181027,1721923844633,-500.0,0.00013972,2]
[333181028,1721923844643,-500.0,0.00013972,2]
[333181029,1721923844652,-548.83,0.00013972,2]
[333181030,1721923844796,-799.6,0.00013972,2]
[333181031,1721923844807,-500.0,0.00013972,2]
[333181032,1721923844818,-500.0,0.00013972,2]
[333181033,1721923844828,-488.72897069,0.00013972,2]
[333181034,1721923844839,-500.0,0.00013972,2]
[333181035,1721923844848,-666.19,0.00013972,2]
[333181036,1721923844858,-500.0,0.00013972,2]
[333181037,1721923844867,-500.0,0.00013972,2]
[333181038,1721923844877,-500.0,0.00013972,2]
[333181039,1721923844887,-960.27,0.00013972,2]
[333181040,1721923844896,-500.0,0.00013972,2]
[333181041,1721923844907,-500.0,0.00013972,2]
[333181042,1721923844916,-500.0,0.00013972,2]
[333181043,1721923844926,-1031.16,0.00013972,2]
[333181044,1721923844936,-500.0,0.00013972,2]
[333181045,1721923844946,-1301.21,0.00013972,2]
[333181046,1721923844955,-500.0,0.00013972,2]
[333181047,1721923844965,-500.0,0.00013972,2]
[333181048,1721923844978,-500.0,0.00013972,2]
[333181049,1721923844988,-643.22,0.00013972,2]
[333181050,1721923844998,-500.0,0.00013972,2]
[333181051,1721923845011,-500.0,0.00013972,2]
[333181052,1721923845020,-500.0,0.00013972,2]
[333181053,1721923845030,-500.0,0.00013972,2]
[333181054,1721923845039,-580.11517769,0.00013972,2]
[333181055,1721923845048,-500.0,0.00013972,2]
[333181056,1721923845057,-1259.43,0.00013972,2]
[333181057,1721923845067,-500.0,0.00013972,2]
[333181058,1721923845077,-500.0,0.00013972,2]
[333181059,1721923845087,-500.0,0.00013972,2]
[333181060,1721923845097,-500.0,0.00013972,2]
[333181061,1721923845107,-1420.61,0.00013972,2]
[333181062,1721923845117,-500.0,0.00013972,2]
[333181063,1721923845127,-500.0,0.00013972,2]
[333181064,1721923845137,-500.0,0.00013972,2]
[333181065,1721923845146,-500.0,0.00013972,2]
[333181066,1721923845156,-306.08461225,0.00013972,2]
[333181067,1721923845166,-500.0,0.00013972,2]
[333181068,1721923845175,-500.0,0.00013972,2]
[333181069,1721923845185,-1270.68,0.00013972,2]
[333181070,1721923845194,-500.0,0.00013972,2]
[333181071,1721923845204,-621.97,0.00013972,2]
[333181072,1721923845213,-151.0,0.00013972,2]
[333181073,1721923845225,-500.0,0.00013972,2]
[333181074,1721923845234,-866.58,0.00013972,2]
[333181075,1721923845243,-500.0,0.00013972,2]
[333181076,1721923845253,-500.0,0.00013972,2]
[333181077,1721923845262,-791.46,0.00013972,2]
[333181078,1721923845272,-500.0,0.00013972,2]
[333181079,1721923845281,-886.54,0.00013972,2]
[333181080,1721923845290,-904.1,0.00013972,2]
[333181081,1721923845300,-500.0,0.00013972,2]
[333181082,1721923845309,-1528.49,0.00013972,2]
[333181083,1721923845318,-500.0,0.00013972,2]
[333181084,1721923845328,-1254.45,0.00013972,2]
[333181085,1721923845337,-500.0,0.00013972,2]
[333181086,1721923845347,-500.0,0.00013972,2]
[333181087,1721923845356,-500.0,0.00013972,2]
[333181088,1721923845366,-151.0,0.00013972,2]
[333181089,1721923845375,-151.0,0.00013972,2]
[333181090,1721923845384,-151.0,0.00013972,2]
[333181091,1721923845396,-151.0,0.00013972,2]
[333181092,1721923845407,-500.0,0.00013972,2]
[333181093,1721923845416,-726.25,0.00013972,2]
[333181094,1721923845428,-500.0,0.00013972,2]
[333181095,1721923845438,-500.0,0.00013972,2]
[333181096,1721923845448,-526.24,0.00013972,2]
[333181097,1721923845458,-563.51,0.00013972,2]
[333181098,1721923845471,-500.0,0.00013972,2]
[333181099,1721923845481,-500.0,0.00013972,2]
[333181100,1721923845492,-500.0,0.00013972,2]
[333181101,1721923845505,-500.0,0.00013972,2]
[333181102,1721923845516,-511.04286735,0.00013972,2]
[333181103,1721923845526,-964.7,0.00013972,2]
[333181104,1721923845536,-500.0,0.00013972,2]
[333181105,1721923845546,-729.83,0.00013972,2]
[333181106,1721923845558,-1249.36,0.00013972,2]
[333181107,1721923845569,-540.1,0.00013972,2]
[333181108,1721923845578,-500.0,0.00013972,2]
[333181109,1721923845589,-500.0,0.00013972,2]
[333181110,1721923845601,-653.86,0.00013972,2]
[333181111,1721923845610,-151.0,0.00013972,2]
[333181112,1721923845620,-151.0,0.00013972,2]
[333181113,1721923845632,-883.63,0.00013972,2]
[333181114,1721923845642,-500.0,0.00013972,2]
[333181115,1721923845654,-500.0,0.00013972,2]
[333181116,1721923845664,-1076.75045589,0.00013972,2]
[333181137,1721923846408,-75.21954411,0.00013972,2]
[333181138,1721923846418,-1367.44,0.00013972,2]
[333181139,1721923846427,-75.68066331,0.00013972,2]
[333181140,1721923846597,-424.31933669,0.00013972,2]
[333181141,1721923846608,-500.0,0.00013972,2]
[333181142,1721923846617,-238.92407258,0.00013972,2]
[333181144,1721923846629,-261.07592742,0.00013972,2]
[333181146,1721923846640,-151.0,0.00013972,2]
[333181148,1721923846651,-151.0,0.00013972,2]
[333181151,1721923846661,-500.0,0.00013972,2]
[333181153,1721923846673,-143.14853858,0.00013972,2]
[333181155,1721923846684,-385.78146142,0.00013972,2]
[333181157,1721923846694,-151.0,0.00013972,2]
[333181159,1721923846703,-151.0,0.00013972,2]
[333181161,1721923846712,-1744.93,0.00013972,2]
[333181163,1721923846724,-500.0,0.00013972,2]
[333181165,1721923846734,-500.0,0.00013972,2]
[333181167,1721923846744,-500.0,0.00013972,2]
[333181169,1721923846754,-481.54945473,0.00013972,2]
[333181171,1721923846767,-848.36,0.00013972,2]
[333181173,1721923846777,-500.0,0.00013972,2]
[333181175,1721923846786,-500.0,0.00013972,2]
[333181177,1721923846796,-1167.02,0.00013972,2]
[333181179,1721923846806,-500.0,0.00013972,2]
[333181180,1721923846815,-1240.98,0.00013972,2]
[333181181,1721923846825,-500.0,0.00013972,2]
[333181182,1721923846835,-1104.1,0.00013972,2]
[333181183,1721923846846,-503.95767655,0.00013972,2]
[333181184,1721923846856,-500.0,0.00013972,2]
[333181185,1721923846865,-1172.98,0.00013972,2]
[333181186,1721923846874,-1120.64,0.00013972,2]
[333181187,1721923846883,-500.0,0.00013972,2]
[333181188,1721923846892,-500.0,0.00013972,2]
[333181189,1721923846902,-502.82560448,0.00013972,2]
[333181190,1721923846911,-561.71,0.00013972,2]
[333181191,1721923846921,-1396.04,0.00013972,2]
[333181192,1721923846931,-500.0,0.00013972,2]
[333181193,1721923846940,-228.21999468,0.00013972,2]
[333181194,1721923846949,-1004.7,0.00013972,2]
[333181195,1721923846958,-969.02,0.00013972,2]
[333181196,1721923846969,-1208.69939772,0.00013972,2]
[333181197,1721923846982,-2222.72060228,0.00013972,2]
[333181198,1721923846991,-633.37961756,0.00013972,2]
[333181199,1721923847003,-666.31,0.00013972,2]
[333181200,1721923847013,-150.38055334,0.00013972,2]
[333181201,1721923847024,-890.96,0.00013972,2]
[333181202,1721923847035,-509.17657839,0.00013972,2]
[333181203,1721923847046,-1564.69,0.00013972,2]
[333181204,1721923847058,-2572.45,0.00013972,2]
[333181205,1721923847070,-567.19,0.00013972,2]
[333181206,1721923847080,-504.19773066,0.00013972,2]
[333181207,1721923847090,-500.0,0.00013972,2]
[333181208,1721923847099,-505.73877375,0.00013972,2]
[333181209,1721923847108,-648.54,0.00013972,2]
[333181210,1721923847118,-1104.82,0.00013972,2]
[333181211,1721923847129,-500.0,0.00013972,2]
[333181212,1721923847139,-500.0,0.00013972,2]
[333181213,1721923847149,-2257.7,0.00013972,2]
[333181214,1721923847161,-2237.01,0.00013972,2]
[333181215,1721923847173,-500.0,0.00013972,2]
[333181216,1721923847183,-500.0,0.00013972,2]
[333181217,1721923847194,-1059.3,0.00013972,2]
[333181218,1721923847205,-500.0,0.00013972,2]
[333181219,1721923847216,-3155.3,0.00013972,2]
[333181220,1721923847227,-500.0,0.00013972,2]
[333181221,1721923847237,-500.0,0.00013972,2]
[333181222,1721923847250,-505.41,0.00013972,2]
[333181223,1721923847260,-500.0,0.00013972,2]
[333181224,1721923847270,-500.0,0.00013972,2]
[333181225,1721923847279,-3357.02,0.00013972,2]
[333181226,1721923847288,-789.83,0.00013972,2]
[333181227,1721923847297,-500.0,0.00013972,2]
[333181228,1721923847307,-1658.12,0.00013972,2]
[333181229,1721923847316,-500.0,0.00013972,2]
[333181230,1721923847325,-500.0,0.00013972,2]
[333181231,1721923847334,-500.0,0.00013972,2]
[333181232,1721923847343,-1670.84,0.00013972,2]
[333181233,1721923847353,-500.0,0.00013972,2]
[333181234,1721923847362,-500.0,0.00013972,2]
[333181235,1721923847372,-1073.98,0.00013972,2]
[333181236,1721923847381,-500.0,0.00013972,2]
[333181237,1721923847390,-500.0,0.00013972,2]
[333181238,1721923847400,-500.0,0.00013972,2]
[333181239,1721923847409,-1696.56,0.00013972,2]
[333181240,1721923847418,-500.0,0.00013972,2]
[333181241,1721923847427,-500.0,0.00013972,2]
[333181242,1721923847437,-500.0,0.00013972,2]
[333181243,1721923847446,-500.0,0.00013972,2]
[333181244,1721923847457,-365.00000002,0.00013972,2]
[333181245,1721923847470,-500.0,0.00013972,2]
[333181246,1721923847479,-848.07,0.00013972,2]
[333181247,1721923847488,-1486.92,0.00013972,2]
[333181248,1721923847498,-11412.92,0.00013972,2]
[333181249,1721923847506,-500.0,0.00013972,2]
[333181250,1721923847516,-7659.52,0.00013972,2]
[333181251,1721923847526,-1083.88,0.00013972,2]
[333181252,1721923847536,-791.54,0.00013972,2]
[333181253,1721923847545,-500.0,0.00013972,2]
[333181254,1721923847556,-1848.12,0.00013972,2]
[333181255,1721923847566,-4828.62,0.00013972,2]
[333181256,1721923847578,-500.0,0.00013972,2]
[333181257,1721923847588,-914.13,0.00013972,2]
[333181258,1721923847598,-500.0,0.00013972,2]
[333181259,1721923847607,-500.0,0.00013972,2]
[333181260,1721923847616,-930.3,0.00013972,2]
[333181261,1721923847625,-2109.4,0.00013972,2]
[333181262,1721923847634,-500.0,0.00013972,2]
[333181263,1721923847643,-500.0,0.00013972,2]
[333181264,1721923847653,-552.91,0.00013972,2]
[333181265,1721923847662,-599.5,0.00013972,2]
[333181266,1721923847671,-500.0,0.00013972,2]
[333181267,1721923847681,-500.0,0.00013972,2]
[333181268,1721923847690,-969.45,0.00013972,2]
[333181269,1721923847699,-500.0,0.00013972,2]
[333181270,1721923847708,-500.0,0.00013972,2]
[333181271,1721923847719,-500.0,0.00013972,2]
[333181272,1721923847729,-608.17,0.00013972,2]
[333181273,1721923847739,-500.0,0.00013972,2]
[333181274,1721923847750,-1932.76,0.00013972,2]
[333181275,1721923847760,-1512.72,0.00013972,2]
[333181276,1721923847769,-500.0,0.00013972,2]
[333181277,1721923847779,-630.15,0.00013972,2]
[333181278,1721923847788,-1028.91,0.00013972,2]
[333181279,1721923847798,-500.0,0.00013972,2]
[333181280,1721923847808,-500.0,0.00013972,2]
[333181281,1721923847817,-500.0,0.00013972,2]
[333181282,1721923847828,-530.83,0.00013972,2]
[333181283,1721923847837,-500.0,0.00013972,2]
[333181284,1721923847847,-906.45,0.00013972,2]
[333181285,1721923847856,-500.0,0.00013972,2]
[333181286,1721923847865,-3587.15,0.00013972,2]
[333181287,1721923847875,-501.63508801,0.00013972,2]
[333181288,1721923847884,-5602.06,0.00013972,2]
[333181289,1721923847894,-9992.31,0.00013972,2]
[333181290,1721923847904,-1145.34,0.00013972,2]
[333181291,1721923847913,-500.0,0.00013972,2]
[333181292,1721923847923,-1570.53,0.00013972,2]
[333181293,1721923847934,-974.14,0.00013972,2]
[333181294,1721923847944,-500.0,0.00013972,2]
[333181295,1721923847954,-1686.16,0.00013972,2]
[333181296,1721923847964,-500.0,0.00013972,2]
[333181297,1721923847975,-500.0,0.00013972,2]
[333181298,1721923847985,-1167.33,0.00013972,2]
[333181299,1721923847994,-500.0,0.00013972,2]
[333181300,1721923848004,-500.0,0.00013972,2]
[333181301,1721923848014,-500.0,0.00013972,2]
[333181302,1721923848024,-1811.88,0.00013972,2]
[333181303,1721923848171,-1048.19,0.00013972,2]
[333181304,1721923848180,-1445.36,0.00013972,2]
[333181305,1721923848189,-1760.96,0.00013972,2]
[333181306,1721923848199,-500.0,0.00013972,2]
[333181307,1721923848208,-500.0,0.00013972,2]
[333181308,1721923848219,-1929.05,0.00013972,2]
[333181309,1721923848229,-565.49,0.00013972,2]
[333181310,1721923848238,-540.23,0.00013972,2]
[333181311,1721923848248,-500.0,0.00013972,2]
[333181312,1721923848257,-500.0,0.00013972,2]
[333181313,1721923848270,-302.94005181,0.00013972,2]
[333181314,1721923848279,-500.0,0.00013972,2]
[333181315,1721923848289,-645.68,0.00013972,2]
[333181316,1721923848299,-500.0,0.00013972,2]
[333181317,1721923848308,-500.0,0.00013972,2]
[333181318,1721923848319,-500.0,0.00013972,2]
[333181319,1721923848329,-500.0,0.00013972,2]
[333181320,1721923848338,-812.69,0.00013972,2]
[333181321,1721923848348,-3134.3,0.00013972,2]
[333181322,1721923848357,-1644.74,0.00013972,2]
[333181323,1721923848367,-500.0,0.00013972,2]
[333181324,1721923848377,-490.31243542,0.00013972,2]
[333181325,1721923848386,-517.1,0.00013972,2]
[333181326,1721923848395,-1553.87,0.00013972,2]
[333181327,1721923848405,-500.0,0.00013972,2]
[333181328,1721923848415,-151.0,0.00013972,2]
[333181329,1721923848424,-151.0,0.00013972,2]
[333181330,1721923848434,-500.0,0.00013972,2]
[333181331,1721923848444,-500.0,0.00013972,2]
[333181332,1721923848453,-151.0,0.00013972,2]
[333181333,1721923848463,-151.0,0.00013972,2]
[333181334,1721923848475,-500.0,0.00013972,2]
[333181335,1721923848485,-500.0,0.00013972,2]
[333181336,1721923848495,-688.86,0.00013972,2]
[333181337,1721923848505,-1075.19,0.00013972,2]
[333181338,1721923848515,-500.0,0.00013972,2]
[333181339,1721923848524,-500.0,0.00013972,2]
[333181340,1721923848537,-500.0,0.00013972,2]
[333181341,1721923848547,-500.0,0.00013972,2]
[333181342,1721923848556,-153.0,0.00013973,2]
[333181343,1721923848566,-153.0,0.00013973,2]
[333181344,1721923848576,-153.0,0.00013973,2]
[333181345,1721923848586,-153.0,0.00013973,2]
[333181346,1721923848596,-153.0,0.00013973,2]
[333181347,1721923848605,-244.81831999,0.00014,2]
[333181348,1721923848614,-154.79103211,0.00014,2]
[333181349,1721923848624,-154.79103211,0.00014,2]
[333181350,1721923848633,-3200.0,0.00014015,2]
[333181351,1721923848642,-212.773538,0.00014049,2]
[333181352,1721923848651,-178.255816,0.00014049,2]
[333181353,1721923848661,-272.153197,0.00014049,2]
[333181354,1721923848671,-224.974369,0.00014049,2]
[333181355,1721923848681,-167.069487,0.00014049,2]
[333181356,1721923848691,-150.940153,0.00014049,2]
[333181357,1721923848701,-167.069487,0.00014049,2]
[333181358,1721923848711,-258.11335717,0.00014085,2]
[333181359,1721923848722,-208.745872,0.00014246,2]
[333181360,1721923848733,-208.745872,0.00014246,2]
[333181361,1721923848742,-500.0,0.00014246,2]
[333181362,1721923848757,-500.0,0.00014246,2]
[333181363,1721923848766,-500.0,0.00014246,2]
[333181364,1721923848776,-500.0,0.00014246,2]
[333181365,1721923848787,-500.0,0.00014246,2]
[333181366,1721923848798,-500.0,0.00014246,2]
[333181367,1721923848809,-500.0,0.00014246,2]
[333181368,1721923848819,-587.57,0.00014246,2]
[333181369,1721923848829,-500.0,0.00014246,2]
[333181370,1721923848840,-500.0,0.00014246,2]
[333181371,1721923848850,-500.0,0.00014246,2]
[333181372,1721923848863,-500.0,0.00014246,2]
[333181373,1721923848873,-500.0,0.00014246,2]
[333181374,1721923848883,-500.0,0.00014246,2]
[333181375,1721923848894,-500.0,0.00014246,2]
[333181376,1721923848904,-500.0,0.00014246,2]
[333181377,1721923848914,-500.0,0.00014246,2]
[333181378,1721923848925,-500.0,0.00014246,2]
[333181379,1721923848935,-500.0,0.00014246,2]
[333181380,1721923848945,-401.57602234,0.00014246,2]
[333181381,1721923848955,-500.0,0.00014246,2]
[333181382,1721923848966,-500.0,0.00014246,2]
[333181383,1721923848978,-500.0,0.00014246,2]
[333181384,1721923848990,-500.0,0.00014246,2]
[333181385,1721923849000,-500.0,0.00014246,2]
[333181386,1721923849011,-500.0,0.00014246,2]
[333181387,1721923849022,-500.0,0.00014246,2]
[333181388,1721923849033,-504.33677994,0.00014246,2]
[333181389,1721923849045,-500.0,0.00014246,2]
[333181390,1721923849055,-500.0,0.00014246,2]
[333181391,1721923849066,-500.0,0.00014246,2]
[333181392,1721923849077,-536.20268313,0.00014246,2]
[333181393,1721923849086,-500.0,0.00014246,2]
[333181394,1721923849097,-500.0,0.00014246,2]
[333181395,1721923849107,-656.91,0.00014246,2]
[333181396,1721923849117,-500.0,0.00014246,2]
[333181397,1721923849129,-500.0,0.00014246,2]
[333181398,1721923849139,-500.0,0.00014246,2]
[333181399,1721923849152,-500.0,0.00014246,2]
[333181400,1721923849163,-500.0,0.00014246,2]
[333181401,1721923849173,-500.0,0.00014246,2]
[333181402,1721923849182,-1473.79,0.00014246,2]
[333181403,1721923849193,-500.0,0.00014246,2]
[333181404,1721923849205,-500.0,0.00014246,2]
[333181405,1721923849215,-500.0,0.00014246,2]
[333181406,1721923849226,-500.0,0.00014246,2]
[333181407,1721923849235,-500.0,0.00014246,2]
[333181408,1721923849245,-500.0,0.00014246,2]
[333181409,1721923849255,-500.0,0.00014246,2]
[333181410,1721923849264,-151.0,0.00014246,2]
[333181411,1721923849275,-500.0,0.00014246,2]
[333181412,1721923849285,-500.0,0.00014246,2]
[333181413,1721923849295,-500.0,0.00014246,2]
[333181414,1721923849305,-1043.85,0.00014246,2]
[333181415,1721923849315,-514.68123155,0.00014246,2]
[333181416,1721923849327,-500.0,0.00014246,2]
[333181417,1721923849337,-273.03,0.00014246,2]
[333181418,1721923849347,-500.0,0.00014246,2]
[333181419,1721923849357,-500.0,0.00014246,2]
[333181420,1721923849369,-2227.8,0.00014246,2]
[333181421,1721923849380,-500.0,0.00014246,2]
[333181422,1721923849390,-699.57,0.00014246,2]
[333181423,1721923849400,-1489.52,0.00014246,2]
[333181424,1721923849411,-500.0,0.00014246,2]
[333181425,1721923849421,-500.0,0.00014246,2]
[333181426,1721923849432,-500.0,0.00014246,2]
[333181427,1721923849443,-500.0,0.00014246,2]
[333181428,1721923849454,-500.0,0.00014246,2]
[333181429,1721923849465,-417.44979149,0.00014246,2]
[333181430,1721923849476,-500.0,0.00014246,2]
[333181431,1721923849485,-548.83,0.00014246,2]
[333181432,1721923849495,-799.6,0.00014246,2]
[333181433,1721923849504,-500.0,0.00014246,2]
[333181434,1721923849514,-500.0,0.00014246,2]
[333181435,1721923849525,-500.0,0.00014246,2]
[333181436,1721923849534,-666.19,0.00014246,2]
[333181437,1721923849545,-500.0,0.00014246,2]
[333181438,1721923849556,-500.0,0.00014246,2]
[333181439,1721923849566,-500.0,0.00014246,2]
[333181440,1721923849576,-960.27,0.00014246,2]
[333181441,1721923849586,-500.0,0.00014246,2]
[333181442,1721923849596,-500.0,0.00014246,2]
[333181443,1721923849607,-1031.16,0.00014246,2]
[333181444,1721923849617,-500.0,0.00014246,2]
[333181445,1721923849627,-1301.21,0.00014246,2]
[333181446,1721923849637,-500.0,0.00014246,2]
[333181447,1721923849647,-500.0,0.00014246,2]
[333181448,1721923849658,-643.22,0.00014246,2]
[333181449,1721923849668,-500.0,0.00014246,2]